Cogmind - Beta 11.1 @@@ ROGUE MODE // 2022.06.09 @ 16:57:03 Player: lsend Result: Heading to fleet! Performance ------------- Evolutions (9) 4500 Regions Visited (27) 5400 Robots Destroyed (18) 90 Value Destroyed (408) 408 Prototype IDs (61) 1220 Alien Tech Used (5) 1000 Bonus (20761) 20761 TOTAL SCORE: 33379 Bonus ------- Follower Combat Kills 653 Entered DSFs 500 Aligned with FarCom 300 Met Zhirov 300 Met Warlord at Base 500 MAIN.C Attacked Warlord 500 Found Hidden Lab 3000 Used Core Reset Matrix 3000 Met Warlord at Research 2000 Destroyed MAIN.C Guards 500 Met MAIN.C 5000 Met Warlord at Command 2000 Win 3000 Friendly Fire -492 Cogmind --------- Core Integrity 1342/1600 Matter 291/300 Energy 361/365 System Corruption 13% Temperature Cool (8) Movement Flying (29) Location To Fleet Rendezvous Parts ------- > --- POWER (3) -------- Fusion Reactor Light Antimatter Reactor > --- PROPULSION (8) --- Improved Diametric Drive Cooled Impulse Thruster Impulse Thruster Array Impulse Thruster Array > --- UTILITY (13) ----- Advanced Power Amplifier Gravity Neutralizer Quantum Shading Machine Advanced Signal Interpreter Medium Regenerative Plating Advanced Remote Shield Advanced Hacking Suite System Mapper Quantum Router > --- WEAPON (2) ------- Plasma Sword Enhanced Force Lance > --- INVENTORY (5) ---- Advanced Power Amplifier Experimental Thermal Defense Suite Transdimensional Reconstructor Ionic Axe Peak State ------------ > --- POWER ------------ Micro Fission Core Fusion Reactor Improved Fusion Compressor > --- PROPULSION ------- Field Propulsion Array Cooled Impulse Thruster Cooled Impulse Thruster Impulse Thruster Array Impulse Thruster Array > --- UTILITY ---------- Advanced Power Amplifier Small Storage Unit Gravity Neutralizer Advanced Signal Interpreter Advanced Cloaking Device Medium Regenerative Plating Heavy Regenerative Plating Experimental Thermal Defense Suite Advanced Remote Shield Advanced Hacking Suite System Mapper Quantum Router > --- WEAPON ----------- Plasma Sword > --- INVENTORY -------- Q-thruster Improved Diametric Drive Advanced Power Amplifier Advanced Weight Redist. System Transdimensional Reconstructor Enhanced Force Lance [Rating: 189] Favorites ----------- Power Micro Fission Core Engine Light Deuterium Engine Power Core Micro Fission Core Reactor Fusion Reactor Propulsion Xenon Bombardment Thruster Treads Light Treads Flight Unit Xenon Bombardment Thruster Utility Advanced Hacking Suite Device Advanced Weight Redist. System Storage Small Storage Unit Processor Advanced Signal Interpreter Hackware Advanced Hacking Suite Protection Medium Regenerative Plating Weapon Scythe Launcher Proton Missile Launcher Slashing Weapon Scythe Piercing Weapon Enhanced Force Lance Build | -11 -10 -10 -10 -9 -8 -7 -7 -6 -6 -6 -6 -5 -5 -5 -5 -4 -4 -4 -4 -4 -3 -3 -3 -3 -2 -1 -1 ------- Run | Scr Mat Min Exi Min Mat Fac DSF Fac Was Fac Ext Fac Upp Upp War Pro Fac Upp Upp Zhi Pro Res Arm Lab Res Acc Com Slots Evolved 18 | . . . . . 4 2 . 2 . . . 2 . . . . 2 . . . . 2 . . 2 2 . Power 1 | . . . . . . . . . . . . 1 . . . . . . . . . . . . . . . Propulsion 6 | . . . . . 2 1 . 1 . . . . . . . . . . . . . . . . 1 1 . Utility 11 | . . . . . 2 1 . 1 . . . 1 . . . . 2 . . . . 2 . . 1 1 . Weapon . | . . . . . . . . . . . . . . . . . . . . . . . . . . . . Parts Attached 102 | 2 1 1 2 2 3 . 3 10 1 9 5 3 . 2 9 1 7 1 1 4 . . 3 6 7 6 13 Power 7 | . . . . . . . . . . 1 . 1 . . . . 1 1 . . . . . . . 1 2 Engine 1 | . . . . . . . . . . . . . . . . . . 1 . . . . . . . . . Core 4 | . . . . . . . . . . 1 . 1 . . . . 1 . . . . . . . . . 1 Reactor 2 | . . . . . . . . . . . . . . . . . . . . . . . . . . 1 1 Propulsion 32 | 2 . . 1 1 . . 3 3 . 4 3 1 . . 1 1 3 . . 2 . . 1 . 2 2 2 Treads 2 | 2 . . . . . . . . . . . . . . . . . . . . . . . . . . . Leg . | . . . . . . . . . . . . . . . . . . . . . . . . . . . . Wheel . | . . . . . . . . . . . . . . . . . . . . . . . . . . . . Hover . | . . . . . . . . . . . . . . . . . . . . . . . . . . . . Flight 30 | . . . 1 1 . . 3 3 . 4 3 1 . . 1 1 3 . . 2 . . 1 . 2 2 2 Utility 49 | . 1 1 1 . 3 . . 5 1 3 2 1 . 2 5 . 3 . 1 2 . . 1 6 3 2 6 Device 27 | . . 1 1 . . . . 3 . . 1 . . 2 2 . 2 . 1 2 . . 1 5 2 . 4 Storage 1 | . . . . . . . . . . . . . . . 1 . . . . . . . . . . . . Processor 2 | . . . . . . . . . . 1 . . . . 1 . . . . . . . . . . . . Hackware 4 | . . . . . . . . 1 1 . . . . . . . 1 . . . . . . 1 . . . Protection 15 | . 1 . . . 3 . . 1 . 2 1 1 . . 1 . . . . . . . . . 1 2 2 Artifact . | . . . . . . . . . . . . . . . . . . . . . . . . . . . . Weapon 14 | . . . . 1 . . . 2 . 1 . . . . 3 . . . . . . . 1 . 2 1 3 Energy Gun . | . . . . . . . . . . . . . . . . . . . . . . . . . . . . Energy Cannon . | . . . . . . . . . . . . . . . . . . . . . . . . . . . . Ballistic Gun . | . . . . . . . . . . . . . . . . . . . . . . . . . . . . Ballistic Cannon . | . . . . . . . . . . . . . . . . . . . . . . . . . . . . Launcher 4 | . . . . 1 . . . 2 . . . . . . 1 . . . . . . . . . . . . Special Weapon . | . . . . . . . . . . . . . . . . . . . . . . . . . . . . Impact Weapon . | . . . . . . . . . . . . . . . . . . . . . . . . . . . . Slashing Weapon 8 | . . . . . . . . . . 1 . . . . 2 . . . . . . . . . 2 1 2 Piercing Weapon 2 | . . . . . . . . . . . . . . . . . . . . . . . 1 . . . 1 Special Melee Weapon . | . . . . . . . . . . . . . . . . . . . . . . . . . . . . Unidentified Prototypes 25 | . . 1 . . . . . . . . 1 . . . 3 1 1 . . 3 . . 1 4 4 2 4 Parts Lost 26 | . . . . . 3 . 2 1 . . 3 . . . . 3 3 1 . . . . . . . 3 7 Power 6 | . . . . . 1 . . . . . 1 . . . . . 2 . . . . . . . . 1 1 Propulsion 9 | . . . . . . . 1 1 . . 1 . . . . 2 1 . . . . . . . . . 3 Utility 9 | . . . . . 1 . 1 . . . . . . . . 1 . 1 . . . . . . . 2 3 Weapon 2 | . . . . . 1 . . . . . 1 . . . . . . . . . . . . . . . . Highest Loss Streak 5 | . . . . . 3 . 2 1 . . 1 . . . . 3 2 1 . . . . . . . 3 5 To Critical Strikes . | . . . . . . . . . . . . . . . . . . . . . . . . . . . . Average Slot Usage (%) 77 | . 42 42 42 46 41 . 48 60 93 99 94 90 88 88 89 86 88 88 85 88 89 80 83 85 85 74 65 Engine 1 | . . . . . 2 . . . . . . 4 5 5 5 5 4 5 5 5 5 4 4 4 4 2 . Core 3 | . . . . . . . . 1 6 6 6 5 5 5 5 5 5 5 5 5 5 4 4 4 4 3 3 Reactor 1 | . . . . . . . . . . . . . . . . . . . . . . . . . . . 5 Flight 24 | . . . 6 22 18 . 33 27 40 40 36 32 29 29 29 25 21 21 21 21 21 19 19 18 20 19 15 Device 13 | . . . . . . . . 10 13 13 13 11 11 16 14 11 20 20 17 19 21 19 22 22 20 14 14 Storage 1 | . . . . . . . . . . . . . . . 2 5 5 5 5 5 5 4 4 4 4 3 . Processor 3 | . . . . . . . . . . 4 6 5 5 5 5 5 5 5 5 5 5 4 4 4 4 3 3 Hackware 7 | . . . . . . . . 2 13 7 6 5 5 5 5 5 10 10 10 10 10 9 9 9 12 11 11 Protection 8 | . 14 14 14 14 12 . 14 9 13 13 13 17 17 12 10 7 5 5 5 5 5 4 4 4 6 10 3 Launcher 1 | . . . . 4 8 . . 7 6 6 3 . . . 1 . . . . . . . . . . . . Slashing Weapon 4 | . . . . . . . . . . 5 6 5 5 5 5 11 10 10 10 10 10 9 8 4 3 1 3 Naked Turns . | . . . . . . . . . . . . . . . . . . . . . . . . . . . . Heaviest Build 73 | . 3 3 3 4 8 4 4 16 15 27 28 28 28 31 47 35 36 37 45 45 45 45 52 52 56 73 70 Greatest Support 73 | 3 3 3 3 4 8 8 16 31 31 33 28 29 29 38 42 42 51 51 51 51 50 50 53 53 63 73 66 Greatest Overweight (x) 1 | . . . . . . . . . . . . . . . 1 . . . . . . . . . . 1 1 Average Overweight (x) . | . . . . . . . . . . . . . . . . . . . . . . . . . . . . Largest Inventory Capacity 8 | 5 5 5 5 5 5 5 5 5 5 5 5 5 5 5 8 8 8 8 8 8 8 8 8 8 8 8 8 Average Capacity 6 | 5 5 5 5 5 5 5 5 5 5 5 5 5 5 5 6 8 8 8 8 8 8 8 8 8 8 8 5 Most Carried 8 | 1 5 5 5 5 5 4 5 5 2 5 5 5 5 5 8 8 8 7 6 8 8 8 8 8 8 8 8 Average Carried 5 | . 1 5 4 4 4 4 4 4 2 4 5 4 5 4 6 7 7 6 6 6 8 8 7 6 7 7 4 Final Capacity 8 | 5 5 5 5 5 5 5 5 5 5 5 5 5 5 5 8 8 8 8 8 8 8 8 8 8 8 8 5 Final Carried 8 | 1 5 5 5 4 4 4 5 2 2 5 5 5 5 5 8 7 7 6 6 8 8 8 7 8 8 7 4 Class Distribution -------------------- 50% | Hacker-Sprinter 17% | Sprinter 14% | Mutant 13% | Scavenger-Sprinter Dominant Class ---------------- Mutant | -10/Materials Mutant | -10/Mines Mutant | -10/Exiles Mutant | -9/Mines Mutant | -8/Materials Mutant | -7/Factory Mutant | -7/DSF Mutant | -6/Factory Hacker-Sprinter | -6/Waste Sprinter | -6/Factory Sprinter | -6/Extension Scavenger-Sprinter | -5/Factory Scavenger-Sprinter | -5/Upper Caves Scavenger-Sprinter | -5/Upper Caves Scavenger-Sprinter | -5/Warlord Scavenger-Sprinter | -4/Proximity Caves Hacker-Sprinter | -4/Factory Hacker-Sprinter | -4/Upper Caves Hacker-Sprinter | -4/Upper Caves Hacker-Sprinter | -4/Zhirov Hacker-Sprinter | -3/Proximity Caves Hacker-Sprinter | -3/Research Hacker-Sprinter | -3/Armory Hacker-Sprinter | -3/Lab Hacker-Sprinter | -2/Research Hacker-Sprinter | -1/Access Hacker-Sprinter | -1/Command Resources | -11 -10 -10 -10 -9 -8 -7 -7 -6 -6 -6 -6 -5 -5 -5 -5 -4 -4 -4 -4 -4 -3 -3 -3 -3 -2 -1 -1 ----------- Run | Scr Mat Min Exi Min Mat Fac DSF Fac Was Fac Ext Fac Upp Upp War Pro Fac Upp Upp Zhi Pro Res Arm Lab Res Acc Com Matter Collected 1201 | 194 . . . 28 . . . . . 195 237 . 31 20 95 3 . 72 . . 60 . 20 . 115 22 109 Remotely . | . . . . . . . . . . . . . . . . . . . . . . . . . . . . Salvage Created 857 | . . . . 3 . . . . . 237 227 . . . . . . . . . . . 33 . 338 . 19 Parts 40 | . . . . 2 . . . . . 14 10 . . . . . . . . . . . 3 . 8 . 3 Haulers Intercepted 5 | . . . . . . . . . . 1 1 . . . . . . . . . . . . . 3 . . Recyclers Shooed . | . . . . . . . . . . . . . . . . . . . . . . . . . . . . Parts Field Recycled . | . . . . . . . . . . . . . . . . . . . . . . . . . . . . Retrieved Matter . | . . . . . . . . . . . . . . . . . . . . . . . . . . . . Parts Self-Destructed 1 | . . . . . . . . . . . . . . . . . . . . . 1 . . . . . . Prevented . | . . . . . . . . . . . . . . . . . . . . . . . . . . . . Kills | -11 -10 -10 -10 -9 -8 -7 -7 -6 -6 -6 -6 -5 -5 -5 -5 -4 -4 -4 -4 -4 -3 -3 -3 -3 -2 -1 -1 ------- Run | Scr Mat Min Exi Min Mat Fac DSF Fac Was Fac Ext Fac Upp Upp War Pro Fac Upp Upp Zhi Pro Res Arm Lab Res Acc Com Combat Hostiles Destroyed 8 | . . . . 3 . . . . . 3 2 . . . . . . . . . . . . . . . . Melee 2 | . . . . . . . . . . . 2 . . . . . . . . . . . . . . . . AOE 6 | . . . . 3 . . . . . 3 . . . . . . . . . . . . . . . . . Classes Destroyed 7 | . . . . 1 . . . . . 3 2 . . . . . . . . . . . 1 . . . . Worker 2 | . . . . . . . . . . 1 . . . . . . . . . . . . . . . . 1 Builder 1 | . . . . . . . . . . . 1 . . . . . . . . . . . . . . . . Hauler 5 | . . . . . . . . . . 1 1 . . . . . . . . . . . . . 3 . . Operator 1 | . . . . . . . . . . . . . . . . . . . . . . . 1 . . . . Watcher 1 | . . . . . . . . . . 1 . . . . . . . . . . . . . . . . . Swarmer 6 | . . . . 3 . . . . . 3 . . . . . . . . . . . . . . . . . Sentry 2 | . . . . . . . . . . . 2 . . . . . . . . . . . . . . . . Best Kill Streak 6 | . . . . 3 . . . . . 6 2 . . . . . . . . . . . 1 . 1 . 1 Combat Bots Only 3 | . . . . 3 . . . . . 3 2 . . . . . . . . . . . . . . . . Max Kills in Single Turn 3 | . . . . 1 . . . . . 3 1 . . . . . . . . . . . 1 . 1 . 1 Gunslinging . | . . . . . . . . . . . . . . . . . . . . . . . . . . . . Exploded 2 | . . . . 1 . . . . . 2 . . . . . . . . . . . . . . . . . Melee 1 | . . . . . . . . . . . 1 . . . . . . . . . . . . . . . . Uniques/NPCs Destroyed . | . . . . . . . . . . . . . . . . . . . . . . . . . . . . Combat | -11 -10 -10 -10 -9 -8 -7 -7 -6 -6 -6 -6 -5 -5 -5 -5 -4 -4 -4 -4 -4 -3 -3 -3 -3 -2 -1 -1 -------- Run | Scr Mat Min Exi Min Mat Fac DSF Fac Was Fac Ext Fac Upp Upp War Pro Fac Upp Upp Zhi Pro Res Arm Lab Res Acc Com Damage Taken 5913 | . 10 . . 62 191 . 198 18 . 103 805 83 86 . 147 218 521 127 42 . 12 9 . . 163 1470 1648 Core 715 | . . . . 23 18 . 66 . . 35 129 . 30 . . 25 110 9 12 . . . . . . 95 163 Absorbed by Shields 638 | . . . . . . . . . . . 39 . . . 21 35 58 90 44 . 13 10 . . 35 198 95 Redirected to Shielding 322 | . . . . . 4 . 24 5 . 10 56 18 21 . 48 24 . . . . . . . . . 112 . Regen/Repaired (Parts) 1616 | . . . . . . . . . . . 3 69 97 53 2 36 95 105 31 27 27 26 69 . . 437 539 Core Remaining (%) 91 | 100 . . . 90 96 . 90 . . . 80 . . . . 94 . . . . 88 . . 94 100 . 83 Volleys Fired 15 | . . . . 5 1 . . . . 3 5 . . . 1 . . . . . . . . . . . . Largest 1 | . . . . 1 1 . . . . 1 1 . . . 1 . . . . . . . . . . . . Hottest 39 | . . . . 30 30 . . . . 39 39 . . . 20 . . . . . . . . . . . . Shots Fired 15 | . . . . 5 1 . . . . 3 5 . . . 1 . . . . . . . . . . . . Gun . | . . . . . . . . . . . . . . . . . . . . . . . . . . . . Cannon . | . . . . . . . . . . . . . . . . . . . . . . . . . . . . Launcher 15 | . . . . 5 1 . . . . 3 5 . . . 1 . . . . . . . . . . . . Special . | . . . . . . . . . . . . . . . . . . . . . . . . . . . . Kinetic . | . . . . . . . . . . . . . . . . . . . . . . . . . . . . Thermal . | . . . . . . . . . . . . . . . . . . . . . . . . . . . . Explosive 6 | . . . . 5 1 . . . . . . . . . . . . . . . . . . . . . . Electromagnetic 8 | . . . . . . . . . . 3 5 . . . . . . . . . . . . . . . . Entropic 1 | . . . . . . . . . . . . . . . 1 . . . . . . . . . . . . Robot Hit Streak 2 | . . . . 1 . . . . . 2 . . . . . . . . . . . . . . . . . Robot Miss Streak 1 | . . . . 1 . . . . . 1 . . . . . . . . . . . . . . . . . Penetration Max . | . . . . . . . . . . . . . . . . . . . . . . . . . . . . Secondary Targets . | . . . . . . . . . . . . . . . . . . . . . . . . . . . . Shots Hit Robots 37 | . . . . 2 . . . . . 3 15 . . . . . . . . . . . 4 . 10 . 3 Core Hits 24 | . . . . 2 . . . . . 9 6 . . . . . . . . . . . 2 . 3 . 2 Critical Kills . | . . . . . . . . . . . . . . . . . . . . . . . . . . . . Critical Parts Destroyed . | . . . . . . . . . . . . . . . . . . . . . . . . . . . . Critical Strikes 5 | . . . . . . . . . . . 1 . . . . . . . . . . . . . 3 . 1 Sever 3 | . . . . . . . . . . . 1 . . . . . . . . . . . . . 1 . 1 Impale 2 | . . . . . . . . . . . . . . . . . . . . . . . . . 2 . . Melee Attacks 163 | . . . . . . . . . . 16 19 3 5 . . 4 30 4 . . . 4 12 7 17 21 21 Impact . | . . . . . . . . . . . . . . . . . . . . . . . . . . . . Slashing 130 | . . . . . . . . . . 16 19 3 5 . . 4 30 4 . . . 4 12 6 7 10 10 Piercing 33 | . . . . . . . . . . . . . . . . . . . . . . . . 1 10 11 11 Sneak Attacks 6 | . . . . . . . . . . 1 1 . . . . . . . . . . . . . 3 . 1 Combat Hostiles . | . . . . . . . . . . . . . . . . . . . . . . . . . . . . Follow-up Attacks 3 | . . . . . . . . . . . . . . . . . . . . . . . 1 . 2 . . Damage Inflicted 2829 | . . . . 360 . . . . . 397 863 . . . 164 . . . . . . . 173 . 680 . 192 Guns . | . . . . . . . . . . . . . . . . . . . . . . . . . . . . Cannons . | . . . . . . . . . . . . . . . . . . . . . . . . . . . . Explosions 966 | . . . . 360 . . . . . 321 121 . . . 164 . . . . . . . . . . . . Melee 1863 | . . . . . . . . . . 76 742 . . . . . . . . . . . 173 . 680 . 192 Ramming . | . . . . . . . . . . . . . . . . . . . . . . . . . . . . Kinetic . | . . . . . . . . . . . . . . . . . . . . . . . . . . . . Thermal 176 | . . . . . . . . . . 176 . . . . . . . . . . . . . . . . . Explosive 360 | . . . . 360 . . . . . . . . . . . . . . . . . . . . . . . Electromagnetic 266 | . . . . . . . . . . 145 121 . . . . . . . . . . . . . . . . Impact . | . . . . . . . . . . . . . . . . . . . . . . . . . . . . Slashing 1243 | . . . . . . . . . . 76 742 . . . . . . . . . . . 173 . 60 . 192 Piercing 620 | . . . . . . . . . . . . . . . . . . . . . . . . . 620 . . Entropic 164 | . . . . . . . . . . . . . . . 164 . . . . . . . . . . . . Highest Corruption 13 | . . . . . . . . . . 1 1 1 1 1 1 . . 2 2 2 2 . . . . 8 13 Average Corruption 6 | . . . . . . . . . . 1 1 1 1 1 1 . . 1 2 2 2 . . . . 6 10 Corruption Purged . | . . . . . . . . . . . . . . . . . . . . . . . . . . . . Corruption Blocked . | . . . . . . . . . . . . . . . . . . . . . . . . . . . . Effects 59 | . . . . . . . . . . . 5 . . 2 . . . . 2 . 1 . . . . 7 42 Message Errors 18 | . . . . . . . . . . . 2 . . . . . . . 1 . 1 . . . . 3 11 Matter Fused 13 | . . . . . . . . . . . 1 . . 1 . . . . . . . . . . . 2 9 Heat Flow Errors 7 | . . . . . . . . . . . 1 . . 1 . . . . 1 . . . . . . . 4 Energy Discharges 8 | . . . . . . . . . . . 1 . . . . . . . . . . . . . . . 7 Data Loss (minor) 9 | . . . . . . . . . . . . . . . . . . . . . . . . . . . 9 Data Loss (major) 4 | . . . . . . . . . . . . . . . . . . . . . . . . . . 2 2 Overload Shots . | . . . . . . . . . . . . . . . . . . . . . . . . . . . . Overflow Damage 267 | . . . . 8 29 . . . . 10 83 . . . . . . . . . . . 7 . 130 . . Projectiles . | . . . . . . . . . . . . . . . . . . . . . . . . . . . . Explosions 47 | . . . . 8 29 . . . . 10 . . . . . . . . . . . . . . . . . Melee 220 | . . . . . . . . . . . 83 . . . . . . . . . . . 7 . 130 . . Knockbacks . | . . . . . . . . . . . . . . . . . . . . . . . . . . . . Impact . | . . . . . . . . . . . . . . . . . . . . . . . . . . . . Kinetic . | . . . . . . . . . . . . . . . . . . . . . . . . . . . . Secondary . | . . . . . . . . . . . . . . . . . . . . . . . . . . . . Self-Inflicted Damage 151 | . . . . 40 111 . . . . . . . . . . . . . . . . . . . . . . Shots 4 | . . . . 1 3 . . . . . . . . . . . . . . . . . . . . . . Rammed . | . . . . . . . . . . . . . . . . . . . . . . . . . . . . Targets Rammed . | . . . . . . . . . . . . . . . . . . . . . . . . . . . . Kicked . | . . . . . . . . . . . . . . . . . . . . . . . . . . . . Crushed . | . . . . . . . . . . . . . . . . . . . . . . . . . . . . Highest Temperature 269 | . . . . . . . . . . 9 149 19 5 110 41 9 64 46 121 6 . . . . 9 180 269 Average Temperature 39 | . . . . . . . . . . 4 21 8 3 42 20 4 35 22 43 3 . . . . 5 59 75 Received Heat Transfer 608 | . 6 . . . 36 . 40 9 . 27 196 . 9 . 13 18 130 12 . . . . . . 9 58 45 Siege Activations . | . . . . . . . . . . . . . . . . . . . . . . . . . . . . Robots Corrupted . | . . . . . . . . . . . . . . . . . . . . . . . . . . . . Combat Hostiles . | . . . . . . . . . . . . . . . . . . . . . . . . . . . . Parts Fried . | . . . . . . . . . . . . . . . . . . . . . . . . . . . . Impact Corruptions . | . . . . . . . . . . . . . . . . . . . . . . . . . . . . Robots Melted . | . . . . . . . . . . . . . . . . . . . . . . . . . . . . Combat Hostiles . | . . . . . . . . . . . . . . . . . . . . . . . . . . . . Parts Melted . | . . . . . . . . . . . . . . . . . . . . . . . . . . . . Heat Transferred 150 | . . . . . . . . . . 150 . . . . . . . . . . . . . . . . . Parts Sabotaged . | . . . . . . . . . . . . . . . . . . . . . . . . . . . . Parts Stolen . | . . . . . . . . . . . . . . . . . . . . . . . . . . . . Parts Stripped . | . . . . . . . . . . . . . . . . . . . . . . . . . . . . Power Chain Reactions 1 | . . . . . . . . . . 1 . . . . . . . . . . . . . . . . . Missiles Intercepted . | . . . . . . . . . . . . . . . . . . . . . . . . . . . . Alert | -11 -10 -10 -10 -9 -8 -7 -7 -6 -6 -6 -6 -5 -5 -5 -5 -4 -4 -4 -4 -4 -3 -3 -3 -3 -2 -1 -1 ------- Run | Scr Mat Min Exi Min Mat Fac DSF Fac Was Fac Ext Fac Upp Upp War Pro Fac Upp Upp Zhi Pro Res Arm Lab Res Acc Com Peak Influence 412 | . 30 11 . 169 173 83 178 254 103 201 412 249 . . . . 210 . . . . 43 65 . 105 303 366 Initial 186 | . . 11 . . 65 78 58 82 88 72 23 186 . . . . 9 . . . . 20 22 . . 62 117 Average 101 | . 4 11 . 35 96 80 110 140 92 55 126 207 . . . . 96 . . . . 25 36 . 37 109 121 Maximum Alert Level 2 | . . . . . . . . 1 . 1 2 1 . . . . 1 . . . . . . . . 1 1 Low Security (%) 85 | 100 100 100 . 100 100 100 100 77 100 99 76 50 . . . . 87 . . . . 100 100 . 100 91 77 Level 1 14 | . . . . . . . . 22 . . 22 49 . . . . 12 . . . . . . . . 8 22 Level 2 . | . . . . . . . . . . . 1 . . . . . . . . . . . . . . . . Level 3 . | . . . . . . . . . . . . . . . . . . . . . . . . . . . . Level 4 . | . . . . . . . . . . . . . . . . . . . . . . . . . . . . Level 5 . | . . . . . . . . . . . . . . . . . . . . . . . . . . . . High Security . | . . . . . . . . . . . . . . . . . . . . . . . . . . . . Max Security . | . . . . . . . . . . . . . . . . . . . . . . . . . . . . Squads Dispatched 22 | . . . . . . . 1 2 . 1 3 2 . . . . . . . . . 1 1 . 2 2 7 Investigation 3 | . . . . . . . . . . . . 2 . . . . . . . . . . . . . . 1 Extermination 5 | . . . . . . . . . . 1 . . . . . . . . . . . . . . . . 4 Reinforcement 14 | . . . . . . . 1 2 . . 3 . . . . . . . . . . 1 1 . 2 2 2 Assault . | . . . . . . . . . . . . . . . . . . . . . . . . . . . . Garrison . | . . . . . . . . . . . . . . . . . . . . . . . . . . . . Intercept . | . . . . . . . . . . . . . . . . . . . . . . . . . . . . Searches Triggered . | . . . . . . . . . . . . . . . . . . . . . . . . . . . . Construction Impeded 2 | . . . . . . . . . . . 2 . . . . . . . . . . . . . . . . Haulers Reinforced 2 | . . . . . . . . . . . . . . . . . . . . . . . . . 2 . . Active Scanning Responses . | . . . . . . . . . . . . . . . . . . . . . . . . . . . . Cargo Convoy Interrupts . | . . . . . . . . . . . . . . . . . . . . . . . . . . . . Stealth | -11 -10 -10 -10 -9 -8 -7 -7 -6 -6 -6 -6 -5 -5 -5 -5 -4 -4 -4 -4 -4 -3 -3 -3 -3 -2 -1 -1 --------- Run | Scr Mat Min Exi Min Mat Fac DSF Fac Was Fac Ext Fac Upp Upp War Pro Fac Upp Upp Zhi Pro Res Arm Lab Res Acc Com Distress Signals 18 | . 1 . . . . . . . . 2 1 . . . . . 1 . . . . . . . 7 3 3 Communications Jammed . | . . . . . . . . . . . . . . . . . . . . . . . . . . . . Distress Signals . | . . . . . . . . . . . . . . . . . . . . . . . . . . . . Times Spotted 291 | . 6 . . 4 9 . 34 11 5 18 32 6 8 2 19 5 13 13 6 . 6 5 2 . 7 39 41 Peak Tracking Total 32 | . 6 . . 3 10 . 32 8 5 7 6 5 10 2 14 4 9 8 4 . 6 7 1 . 5 12 11 Tactical Retreats 51 | . 1 . . 1 1 . 6 4 . 4 3 1 3 . 4 1 4 3 1 . 2 . . . . 8 4 Traps | -11 -10 -10 -10 -9 -8 -7 -7 -6 -6 -6 -6 -5 -5 -5 -5 -4 -4 -4 -4 -4 -3 -3 -3 -3 -2 -1 -1 ------- Run | Scr Mat Min Exi Min Mat Fac DSF Fac Was Fac Ext Fac Upp Upp War Pro Fac Upp Upp Zhi Pro Res Arm Lab Res Acc Com Traps Triggered 7 | . . . . . . . 3 1 . . . . . . . . 1 . . . . . 1 . . . 1 Indirectly . | . . . . . . . . . . . . . . . . . . . . . . . . . . . . Trap Hack Attempts . | . . . . . . . . . . . . . . . . . . . . . . . . . . . . Triggered . | . . . . . . . . . . . . . . . . . . . . . . . . . . . . Disarmed . | . . . . . . . . . . . . . . . . . . . . . . . . . . . . Reprogrammed . | . . . . . . . . . . . . . . . . . . . . . . . . . . . . Reused . | . . . . . . . . . . . . . . . . . . . . . . . . . . . . Traps Extracted . | . . . . . . . . . . . . . . . . . . . . . . . . . . . . Installed . | . . . . . . . . . . . . . . . . . . . . . . . . . . . . Triggered 19 | . . . . . . . . . . 1 . . . . 14 . . . . . 3 . . . . . 1 Machines | -11 -10 -10 -10 -9 -8 -7 -7 -6 -6 -6 -6 -5 -5 -5 -5 -4 -4 -4 -4 -4 -3 -3 -3 -3 -2 -1 -1 ---------- Run | Scr Mat Min Exi Min Mat Fac DSF Fac Was Fac Ext Fac Upp Upp War Pro Fac Upp Upp Zhi Pro Res Arm Lab Res Acc Com Machines Disabled 9 | . . . . . 3 . . . . . . . . . 3 . 1 . . . . . . 1 . . 1 Max in Single Turn 3 | . . . . . 3 . . . . . . . . . 3 . 1 . . . . . . 1 . . 1 Garrison Access 1 | . . . . . . . . . . . . . . . . . . . . . . . . . 1 . . Machines Sabotaged . | . . . . . . . . . . . . . . . . . . . . . . . . . . . . Garrisons Compromised . | . . . . . . . . . . . . . . . . . . . . . . . . . . . . Overloaded Fab Kills . | . . . . . . . . . . . . . . . . . . . . . . . . . . . . Hacking | -11 -10 -10 -10 -9 -8 -7 -7 -6 -6 -6 -6 -5 -5 -5 -5 -4 -4 -4 -4 -4 -3 -3 -3 -3 -2 -1 -1 --------- Run | Scr Mat Min Exi Min Mat Fac DSF Fac Was Fac Ext Fac Upp Upp War Pro Fac Upp Upp Zhi Pro Res Arm Lab Res Acc Com Machines Accessed 66 | . 1 1 2 . 3 1 . 4 . 14 5 5 . 1 3 . 1 1 . 5 1 . . . 3 8 7 Terminals 43 | . 1 . . . . 1 . 2 . 12 5 4 . . . . 1 . . . 1 . . . 2 8 6 Fabricators 1 | . . . . . . . . . . . . . . . . . . . . . . . . . 1 . . Repair Stations 4 | . . . . . 1 . . 1 . 1 . 1 . . . . . . . . . . . . . . . Recycling Units 5 | . . . . . 2 . . 1 . 1 . . . . . . . . . . . . . . . . 1 Scanalyzers . | . . . . . . . . . . . . . . . . . . . . . . . . . . . . Garrison Access . | . . . . . . . . . . . . . . . . . . . . . . . . . . . . Total Hacks 145 | . 2 1 3 . 6 1 . 4 . 34 10 13 . 1 6 . 2 1 . 18 1 . . . 6 19 17 Successful 87 | . 2 1 3 . 3 1 . 3 . 13 6 4 . 1 6 . 1 1 . 18 1 . . . 2 12 9 Failed 58 | . . . . . 3 . . 1 . 21 4 9 . . . . 1 . . . . . . . 4 7 8 Catastrophic 7 | . . . . . . . . . . 3 . 1 . . . . . . . . . . . . 1 1 1 Database Lockouts . | . . . . . . . . . . . . . . . . . . . . . . . . . . . . Manual 23 | . . . 1 . . 1 . . . 4 4 . . . . . . . . 1 . . . . 4 5 3 Terminals 100 | . 2 . . . . 1 . 2 . 32 10 11 . . . . 2 . . . 1 . . . 5 19 15 Fabricators 1 | . . . . . . . . . . . . . . . . . . . . . . . . . 1 . . Repair Stations 6 | . . . . . 2 . . 1 . 1 . 2 . . . . . . . . . . . . . . . Recycling Units 8 | . . . . . 4 . . 1 . 1 . . . . . . . . . . . . . . . . 2 Scanalyzers . | . . . . . . . . . . . . . . . . . . . . . . . . . . . . Garrison Access . | . . . . . . . . . . . . . . . . . . . . . . . . . . . . Terminal Hacks 76 | . 2 1 3 . . 1 . 1 . 11 5 3 . 1 6 . 1 1 . 18 1 . . . 1 11 9 Record 9 | . . . 2 . . . . . . . . . . . . . . . . 6 1 . . . . . . Part Schematic 4 | . . . . . . . . . . . . . . . . . . . . 4 . . . . . . . Robot Analysis 4 | . . . . . . . . . . . . . . . . . . . . 4 . . . . . . . Prototype ID Bank 9 | . . . . . . . . . . . . . . . 4 . . . . 4 . . . . . . 1 Open Door 11 | . . 1 . . . . . . . 1 1 . . 1 2 . . 1 . . . . . . . 3 1 Open DSF 2 | . . . . . . 1 . 1 . . . . . . . . . . . . . . . . . . . Level Access Points 2 | . . . . . . . . . . 1 . . . . . . . . . . . . . . . . 1 Branch Access Points 3 | . 1 . . . . . . . . . . 1 . . . . . . . . . . . . . 1 . Emergency Access Points 3 | . . . . . . . . . . . . 1 . . . . . . . . . . . . . . 2 Terminal Index 2 | . . . . . . . . . . 1 1 . . . . . . . . . . . . . . . . Alert Level 1 | . . . . . . . . . . . . . . . . . . . . . . . . . . 1 . Unreport Threat 7 | . . . . . . . . . . 3 . 1 . . . . . . . . . . . . . 3 . Locate Traps 9 | . 1 . . . . . . . . 2 2 . . . . . 1 . . . . . . . . 2 1 Registered Prototypes 1 | . . . . . . . . . . . . . . . . . . . . . . . . . 1 . . Zone Layout 5 | . . . . . . . . . . 3 1 . . . . . . . . . . . . . . 1 . EX-Prototype ID Bank 1 | . . . 1 . . . . . . . . . . . . . . . . . . . . . . . . Disengage Seal 3 | . . . . . . . . . . . . . . . . . . . . . . . . . . . 3 Fabricator Hacks 1 | . . . . . . . . . . . . . . . . . . . . . . . . . 1 . . Build 1 | . . . . . . . . . . . . . . . . . . . . . . . . . 1 . . Repair Station Hacks 4 | . . . . . 1 . . 1 . 1 . 1 . . . . . . . . . . . . . . . Refit 4 | . . . . . 1 . . 1 . 1 . 1 . . . . . . . . . . . . . . . Recycling Unit Hacks 4 | . . . . . 2 . . 1 . 1 . . . . . . . . . . . . . . . . . Retrieve Components 4 | . . . . . 2 . . 1 . 1 . . . . . . . . . . . . . . . . . Scanalyzer . | . . . . . . . . . . . . . . . . . . . . . . . . . . . . Garrison Access Hacks . | . . . . . . . . . . . . . . . . . . . . . . . . . . . . Unauthorized Hacks 2 | . . . . . . . . . . . 1 . . . . . . . . . . . . . . 1 . Terminals 2 | . . . . . . . . . . . 1 . . . . . . . . . . . . . . 1 . Assimilate 1 | . . . . . . . . . . . . . . . . . . . . . . . . . . 1 . Botnet 1 | . . . . . . . . . . . 1 . . . . . . . . . . . . . . . . Fabricators . | . . . . . . . . . . . . . . . . . . . . . . . . . . . . Repair Stations . | . . . . . . . . . . . . . . . . . . . . . . . . . . . . Recycling Units . | . . . . . . . . . . . . . . . . . . . . . . . . . . . . Scanalyzers . | . . . . . . . . . . . . . . . . . . . . . . . . . . . . Garrison Access . | . . . . . . . . . . . . . . . . . . . . . . . . . . . . Data Cores Recovered . | . . . . . . . . . . . . . . . . . . . . . . . . . . . . Used . | . . . . . . . . . . . . . . . . . . . . . . . . . . . . Hacking Detections 38 | . . . . . 2 . . 2 . 12 4 5 . . . . 1 . . . . . . . 2 5 5 Full Trace Events 2 | . . . . . . . . . . . . 2 . . . . . . . . . . . . . . . Feedback Events 1 | . . . . . . . . . . . . 1 . . . . . . . . . . . . . . . Corruption 1 | . . . . . . . . . . . . 1 . . . . . . . . . . . . . . . Feedback Blocked 1 | . . . . . . . . . . . . 1 . . . . . . . . . . . . . . . Robot Schematics Acquired . | . . . . . . . . . . . . . . . . . . . . . . . . . . . . Robots Built . | . . . . . . . . . . . . . . . . . . . . . . . . . . . . Authchips . | . . . . . . . . . . . . . . . . . . . . . . . . . . . . Time . | . . . . . . . . . . . . . . . . . . . . . . . . . . . . Total Robot Build Rating . | . . . . . . . . . . . . . . . . . . . . . . . . . . . . Part Schematics Acquired 4 | . . . . . . . . . . . . . . . . . . . . 4 . . . . . . . Parts Built 2 | . . . . . . . . . . . . . . . . . . . . . . . . . 2 . . Authchips . | . . . . . . . . . . . . . . . . . . . . . . . . . . . . Time 69 | . . . . . . . . . . . . . . . . . . . . . . . . . 69 . . Total Part Build Rating 18 | . . . . . . . . . . . . . . . . . . . . . . . . . 18 . . Parts Repaired . | . . . . . . . . . . . . . . . . . . . . . . . . . . . . Time . | . . . . . . . . . . . . . . . . . . . . . . . . . . . . Parts Recycled . | . . . . . . . . . . . . . . . . . . . . . . . . . . . . Recycled Matter . | . . . . . . . . . . . . . . . . . . . . . . . . . . . . Retrieved Matter . | . . . . . . . . . . . . . . . . . . . . . . . . . . . . Retrieved Components 8 | . . . . . 4 . . 1 . 3 . . . . . . . . . . . . . . . . . Parts Scanalyzed . | . . . . . . . . . . . . . . . . . . . . . . . . . . . . Part Schematics Acquired . | . . . . . . . . . . . . . . . . . . . . . . . . . . . . Parts Damaged . | . . . . . . . . . . . . . . . . . . . . . . . . . . . . Bothacking | -11 -10 -10 -10 -9 -8 -7 -7 -6 -6 -6 -6 -5 -5 -5 -5 -4 -4 -4 -4 -4 -3 -3 -3 -3 -2 -1 -1 ------------ Run | Scr Mat Min Exi Min Mat Fac DSF Fac Was Fac Ext Fac Upp Upp War Pro Fac Upp Upp Zhi Pro Res Arm Lab Res Acc Com Used RIF Installer . | . . . . . . . . . . . . . . . . . . . . . . . . . . . . Robots Hacked . | . . . . . . . . . . . . . . . . . . . . . . . . . . . . Non-combat . | . . . . . . . . . . . . . . . . . . . . . . . . . . . . Combat . | . . . . . . . . . . . . . . . . . . . . . . . . . . . . Robot Hacks Applied . | . . . . . . . . . . . . . . . . . . . . . . . . . . . . Relay Couplers Released 3 | . . . . . . . . . . . . . . . . . . . . . . . . . 3 . . Machine Destruction 3 | . . . . . . . . . . . . . . . . . . . . . . . . . 3 . . Fabnet Peak Effective % . | . . . . . . . . . . . . . . . . . . . . . . . . . . . . Robots Rewired 7 | . . . . . . . . . . . 7 . . . . . . . . . . . . . . . . Allies Hacked . | . . . . . . . . . . . . . . . . . . . . . . . . . . . . Hacks Repelled . | . . . . . . . . . . . . . . . . . . . . . . . . . . . . Allies | -11 -10 -10 -10 -9 -8 -7 -7 -6 -6 -6 -6 -5 -5 -5 -5 -4 -4 -4 -4 -4 -3 -3 -3 -3 -2 -1 -1 -------- Run | Scr Mat Min Exi Min Mat Fac DSF Fac Was Fac Ext Fac Upp Upp War Pro Fac Upp Upp Zhi Pro Res Arm Lab Res Acc Com Total Allies 10 | . . . . . . . . . . . 9 . . . . . . . . . . . . . . 1 . Largest Group 3 | . . . . . . . . . . . 3 . . . . . . . . . . . . . . 1 . Highest-Rated Group 159 | . . . . . . . . . . . 159 . . . . . . . . . . . . . . 26 . Highest-Rated Ally 159 | . . . . . . . . . . . 159 . . . . . . . . . . . . . . 26 . Total Orders . | . . . . . . . . . . . . . . . . . . . . . . . . . . . . Ally Attacks 94 | . . . . . . . . . . . 94 . . . . . . . . . . . . . . . . Total Damage 2410 | . . . . . . . . . . . 2410 . . . . . . . . . . . . . . . . Kills 19 | . . . . . . . . . . . 19 . . . . . . . . . . . . . . . . Allies Corrupted . | . . . . . . . . . . . . . . . . . . . . . . . . . . . . Allies Melted . | . . . . . . . . . . . . . . . . . . . . . . . . . . . . Intel | -11 -10 -10 -10 -9 -8 -7 -7 -6 -6 -6 -6 -5 -5 -5 -5 -4 -4 -4 -4 -4 -3 -3 -3 -3 -2 -1 -1 ------- Run | Scr Mat Min Exi Min Mat Fac DSF Fac Was Fac Ext Fac Upp Upp War Pro Fac Upp Upp Zhi Pro Res Arm Lab Res Acc Com Robot Analysis Total 4 | . . . . . . . . . . . . . . . . . . . . 4 . . . . . . . Derelict Logs Recovered 7 | . . 1 . . . . . . . . . . 1 1 . 2 . 1 1 . . . . . . . . Drone Launches . | . . . . . . . . . . . . . . . . . . . . . . . . . . . . Drone Recoveries . | . . . . . . . . . . . . . . . . . . . . . . . . . . . . Exploration | -11 -10 -10 -10 -9 -8 -7 -7 -6 -6 -6 -6 -5 -5 -5 -5 -4 -4 -4 -4 -4 -3 -3 -3 -3 -2 -1 -1 ------------- Run | Scr Mat Min Exi Min Mat Fac DSF Fac Was Fac Ext Fac Upp Upp War Pro Fac Upp Upp Zhi Pro Res Arm Lab Res Acc Com Turns Passed 6281 | 19 44 62 113 65 96 4 287 235 34 561 654 138 193 116 435 95 209 209 63 54 53 52 139 258 260 337 1496 Spaces Moved 12392 | 29 77 120 217 115 227 11 257 561 103 1553 894 440 617 384 1004 255 500 620 218 141 197 149 284 366 815 899 1339 Core 493 | 29 77 120 217 50 . . . . . . . . . . . . . . . . . . . . . . . Treads . | . . . . . . . . . . . . . . . . . . . . . . . . . . . . Legs . | . . . . . . . . . . . . . . . . . . . . . . . . . . . . Wheels . | . . . . . . . . . . . . . . . . . . . . . . . . . . . . Hover . | . . . . . . . . . . . . . . . . . . . . . . . . . . . . Flight 11899 | . . . . 65 227 11 257 561 103 1553 894 440 617 384 1004 255 500 620 218 141 197 149 284 366 815 899 1339 Fastest Speed 25 | 50 50 50 50 40 37 37 34 31 31 31 28 27 29 29 26 26 26 28 28 27 27 27 27 28 25 25 29 Average Speed 30 | 50 50 50 50 44 38 37 34 33 31 31 28 27 29 29 36 27 26 28 28 27 27 27 27 28 25 29 30 Slowest Speed 109 | 50 50 50 50 50 40 37 37 34 31 34 31 29 29 29 106 29 28 28 28 28 27 27 28 28 25 106 109 Overloaded Moves . | . . . . . . . . . . . . . . . . . . . . . . . . . . . . Propulsion Burnouts . | . . . . . . . . . . . . . . . . . . . . . . . . . . . . Robots Hopped 91 | . . . . . . . 6 8 . 28 5 1 . . . 3 9 1 1 . 1 2 . . 11 15 . Cave-ins Triggered . | . . . . . . . . . . . . . . . . . . . . . . . . . . . . Teleports 1 | . . . . . . . . . . . . . . . . . . . . . . . 1 . . . . Exploration Rate (%) 45 | 3 26 29 60 39 24 . 87 20 75 54 85 13 72 57 91 44 19 73 40 62 48 4 11 96 33 30 33 Regions Visited 27 Branch Regions 15 Pre-discovered Areas 7 | . . . 1 . . . . . . . . . . 1 . 1 . 1 . 3 . . . . . . . Known Exits Taken 20 | . 1 . . . 1 1 . . . 1 1 1 1 1 1 1 1 1 1 1 1 1 1 1 1 1 . Unknown Exits Taken 4 | 1 . 1 1 1 . . . . . . . . . . . . . . . . . . . . . . . Scrap Searched 15 | . . . . 1 . . . . . . . . 3 2 . 3 . 3 2 . 1 . . . . . . Spaces Dug 96 | . . . . . . . . . . 15 2 3 5 . . 4 23 3 . . . 4 4 . 4 21 8 Terrain Destroyed 168 | . . . . 34 25 . . . . 17 2 3 5 . 11 4 23 3 . . . 4 4 . 4 21 8 Melee 96 | . . . . . . . . . . 15 2 3 5 . . 4 23 3 . . . 4 4 . 4 21 8 Projectile . | . . . . . . . . . . . . . . . . . . . . . . . . . . . . AOE 72 | . . . . 34 25 . . . . 2 . . . . 11 . . . . . . . . . . . . Terrain Rammed . | . . . . . . . . . . . . . . . . . . . . . . . . . . . . Walls Destroyed . | . . . . . . . . . . . . . . . . . . . . . . . . . . . . Machines Disabled . | . . . . . . . . . . . . . . . . . . . . . . . . . . . . Actions | -11 -10 -10 -10 -9 -8 -7 -7 -6 -6 -6 -6 -5 -5 -5 -5 -4 -4 -4 -4 -4 -3 -3 -3 -3 -2 -1 -1 --------- Run | Scr Mat Min Exi Min Mat Fac DSF Fac Was Fac Ext Fac Upp Upp War Pro Fac Upp Upp Zhi Pro Res Arm Lab Res Acc Com Total 14461 | 31 81 121 220 123 233 10 447 599 103 1574 1253 449 621 388 1065 269 528 649 217 155 195 152 326 515 832 920 2385 Wait 1705 | . . . . . . . 157 33 . 10 291 . . . 42 13 2 25 . . . 2 14 113 1 4 998 Move 12204 | 28 76 119 216 114 226 10 246 546 102 1503 883 437 616 383 1003 248 485 617 215 140 194 146 283 365 796 869 1338 Hop 70 | . . . . . . . 4 7 . 21 5 1 . . . 3 5 1 1 . 1 . . . 7 14 . Pick Up 41 | 1 4 . . 1 1 . 1 . . 3 1 2 . 1 3 . 2 1 . 5 . . . 10 2 2 1 Fast Attach 62 | 2 1 1 1 . 1 . 3 7 1 4 2 1 . 1 7 . 3 . 1 4 . . 3 3 6 2 8 Attach 33 | . . . . 2 2 . . 3 . . . 2 . 1 1 1 3 1 . 1 . . 1 6 1 3 5 Detach 10 | . . . 1 . 1 . . . . . . . . . 1 . . . . . . . . 3 . 1 3 Swap 12 | . . . 1 . . . . . . 5 3 . . . 1 . 1 . . . . . . . . 1 . Drop 63 | . . 1 1 1 1 . . 3 . 9 4 3 . 2 6 . 2 1 . 5 . . 2 9 6 3 4 Fire 15 | . . . . 5 1 . . . . 3 5 . . . 1 . . . . . . . . . . . . Melee 149 | . . . . . . . . . . 16 19 3 5 . . 4 25 3 . . . 4 10 6 13 21 20 Ram . | . . . . . . . . . . . . . . . . . . . . . . . . . . . . Kick . | . . . . . . . . . . . . . . . . . . . . . . . . . . . . Crush . | . . . . . . . . . . . . . . . . . . . . . . . . . . . . Escape Stasis 57 | . . . . . . . 36 . . . . . . . . . . . . . . . 13 . . . 8 Rewire 40 | . . . . . . . . . . . 40 . . . . . . . . . . . . . . . . Trap . | . . . . . . . . . . . . . . . . . . . . . . . . . . . . Miscellaneous . | . . . . . . . . . . . . . . . . . . . . . . . . . . . . Route ------- -11/Scrapyard -10/Materials -10/Mines -10/Exiles -9/Mines -8/Materials (discovered 2 exits: *Fac x2) -7/Factory -7/DSF -6/Factory -6/Waste -6/Factory (discovered 5 exits: *Fac x4 / *Ext) -6/Extension (discovered 2 exits: *Fac / [*Cet]) -5/Factory (discovered 3 exits: *Fac / *Upp x2) -5/Upper Caves -5/Upper Caves -5/Warlord -4/Proximity Caves -4/Factory (discovered 4 exits: *Res x2 / *Upp x2) -4/Upper Caves -4/Upper Caves -4/Zhirov -3/Proximity Caves -3/Research -3/Armory -3/Lab -2/Research -1/Access -1/Command (discovered 2 exits: *Sur x2) To Fleet Rendezvous History --------- Turn | Location | Event 8 | -11/Scrapyard | Discovered new exit (range 16) 20 | -11/Scrapyard | Entered Materials 44 | -10/Materials | Identified exit to Mines 64 | -10/Materials | Entered Mines 66 | -10/Mines | Found the Drone Emporium 68 | -10/Mines | Found Prototype Device 68 | -10/Mines | Identified Splice Drone Bay 78 | -10/Mines | Learned location of 2 exits from Materials 95 | -10/Mines | Assembled infested the area 124 | -10/Mines | Deemed a non-threat by the Exiles lab entrance 124 | -10/Mines | Discovered new exit (range 5) 126 | -10/Mines | Entered Exiles 139 | -10/Exiles | Met 8R-AWN 148 | -10/Exiles | Met EX-HEX 162 | -10/Exiles | Met EX-BIN 168 | -10/Exiles | Aligned with FarCom system 168 | -10/Exiles | Given EX-Vault access code 181 | -10/Exiles | Opened EX-Vault 185 | -10/Exiles | Found Skeleton Box 199 | -10/Exiles | Warned to stay clear of 0b10 Research branches 213 | -10/Exiles | Met EX-DEC 220 | -10/Exiles | Learned location of Zion (-7) 233 | -10/Exiles | Discovered new exit (range 14) 239 | -10/Exiles | Left Exiles lab with Skeleton Box 239 | -10/Exiles | Entered Mines 300 | -9/Mines | Discovered new exit (range 11) 304 | -9/Mines | Entered Materials 304 | -8/Materials | Evolved 4 slots: Propulsion x2, Utility x2 305 | -8/Materials | Identified exit to Factory 307 | -8/Materials | Build established: Mutant 400 | -8/Materials | Entered Factory 400 | -7/Factory | Evolved 2 slots: Propulsion x1, Utility x1 402 | -7/Factory | Identified exit to DSF 404 | -7/Factory | Entered DSF 414 | -7/DSF | Assembled infested the area 422 | -7/DSF | Lost 3 parts (1p1u1w) 426 | -7/DSF | Additional patrols routed to DSF 684 | -7/DSF | Discovered new exit (range 15) 691 | -7/DSF | Entered Factory 691 | -6/Factory | Evolved 2 slots: Propulsion x1, Utility x1 926 | -6/Factory | Manually triggered Chute Trap 926 | -6/Factory | Sucked down chute 926 | -6/Factory | Entered Waste 931 | -6/Waste | Spotted C-40 Crusher 936 | -6/Waste | Spotted C-40 Crusher 940 | -6/Waste | Spotted C-40 Crusher 942 | -6/Waste | Spotted C-40 Crusher 948 | -6/Waste | Spotted C-40 Crusher 948 | -6/Waste | Spotted C-40 Crusher 957 | -6/Waste | Discovered new exit (range 10) 960 | -6/Waste | Entered Factory 1080 | -6/Factory | Identified exit to Factory 1395 | -6/Factory | Spotted B-75 Beast 1399 | -6/Factory | Build established: Sprinter 1518 | -6/Factory | Discovered new exit (range 6) 1521 | -6/Factory | Identified exit to Extension 1521 | -6/Factory | Entered Extension 1569 | -6/Extension | Remotely autohacked Sealed Heavy Doors 1570 | -6/Extension | Rescued a captive Derelict 1920 | -6/Extension | Spotted B-75 Beast 1923 | -6/Extension | Spotted B-75 Beast 1960 | -6/Extension | Rescued A7 2112 | -6/Extension | Discovered exit to Factory (range 10) 2113 | -6/Extension | Discovered new exit (range 6) 2146 | -6/Extension | Disrupted transfer network 2166 | -6/Extension | Found Prototype Protection 2166 | -6/Extension | Identified Med. Regenerative Plating 2168 | -6/Extension | Extracted ID and sensor layout for unrecognized location from A7's data core 2175 | -6/Extension | Entered Factory 2175 | -5/Factory | Evolved 2 slots: Power x1, Utility x1 2253 | -5/Factory | Identified exit to Upper Caves 2294 | -5/Factory | Discovered new exit (range 7) 2296 | -5/Factory | Identified exit to Factory 2313 | -5/Factory | Entered Upper Caves 2420 | -5/Upper Caves | Learned location of 1 exit from Factory 2438 | -5/Upper Caves | Spotted B-75 Beast 2454 | -5/Upper Caves | Build established: Scavenger-Sprinter 2502 | -5/Upper Caves | Attracted the attention of an 0b10 outpost 2504 | -5/Upper Caves | Discovered new exit (range 7) 2506 | -5/Upper Caves | Identified exit to Upper Caves 2506 | -5/Upper Caves | Entered another Upper Caves area 2612 | -5/Upper Caves | Discovered new exit (range 10) 2615 | -5/Upper Caves | Identified exit to Warlord 2622 | -5/Upper Caves | Entered Warlord 2638 | -5/Warlord | System corruption cleaned by Quarantine Array 2712 | -5/Warlord | Met Warlord 2737 | -5/Warlord | Warlord's base attacked by MAIN.C 2747 | -5/Warlord | Found Prototype Launcher 2747 | -5/Warlord | Identified Vortex Catalyst Activator 2873 | -5/Warlord | Found Prototype Hackware 2876 | -5/Warlord | Found Prototype Processor 2876 | -5/Warlord | Identified Exp. Targeting Computer 2937 | -5/Warlord | Opened side exit 3047 | -5/Warlord | Warlord forces counterattacked 3050 | -5/Warlord | Spotted Executioner 3054 | -5/Warlord | Discovered new exit (range 15) 3057 | -5/Warlord | Identified exit to Proximity Caves 3057 | -5/Warlord | Entered Proximity Caves 3094 | -4/Proximity Caves | Attracted the attention of an 0b10 checkpoint 3095 | -4/Proximity Caves | Spotted B-86 Titan 3129 | -4/Proximity Caves | Lost 3 parts (2n1u) 3150 | -4/Proximity Caves | Discovered exit to Factory (range 8) 3152 | -4/Proximity Caves | Entered Factory 3152 | -4/Factory | Evolved 2 slots: Utility x2 3153 | -4/Factory | Identified exit to Upper Caves 3153 | -4/Factory | Identified System Mapper 3165 | -4/Factory | Discovered new exit (range 15) 3169 | -4/Factory | Identified exit to Research 3182 | -4/Factory | Discovered exit to Research (range 5) 3359 | -4/Factory | Discovered exit to Upper Caves (range 7) 3361 | -4/Factory | Entered Upper Caves 3439 | -4/Upper Caves | Build established: Hacker-Sprinter 3443 | -4/Upper Caves | Attracted the attention of an 0b10 checkpoint 3555 | -4/Upper Caves | Learned location of Quarantine (-2) 3557 | -4/Upper Caves | Attracted the attention of an 0b10 outpost 3567 | -4/Upper Caves | Discovered new exit (range 12) 3570 | -4/Upper Caves | Identified exit to Upper Caves 3570 | -4/Upper Caves | Entered another Upper Caves area 3631 | -4/Upper Caves | Discovered new exit (range 10) 3632 | -4/Upper Caves | Identified exit to Zhirov 3633 | -4/Upper Caves | Entered Zhirov 3633 | -4/Zhirov | Discovered new exit (range 3) 3639 | -4/Zhirov | Met Zhirov 3644 | -4/Zhirov | Learned location of Testing (-3) 3644 | -4/Zhirov | Learned location of Command (-1) 3649 | -4/Zhirov | Zhirov requested help retrieving the SGEMP Prototype 3654 | -4/Zhirov | Found Alien Artifact 3654 | -4/Zhirov | Identified Integrated Reactor 3654 | -4/Zhirov | Installed Integrated Reactor, increased core energy generation (+10) 3674 | -4/Zhirov | Found Alien Artifact 3686 | -4/Zhirov | Identified exit to Proximity Caves 3687 | -4/Zhirov | Entered Proximity Caves 3740 | -3/Proximity Caves | Discovered exit to Research (range 2) 3740 | -3/Proximity Caves | Entered Research 3740 | -3/Research | Evolved 2 slots: Utility x2 3741 | -3/Research | Identified exit to Armory 3772 | -3/Research | Spotted B-86 Titan 3792 | -3/Research | Entered Armory 3928 | -3/Armory | Found Enh. Force Lance 3930 | -3/Armory | Identified Transdimensional Reconstructor 3930 | -3/Armory | Warped through subspace to slip node 3930 | -3/Armory | Discovered new exit (range 1) 3930 | -3/Armory | Identified exit to Lab 3931 | -3/Armory | Entered Lab 3931 | -3/Lab | Discovered new exit (range 9) 3937 | -3/Lab | Identified exit to Research 3938 | -3/Lab | Hidden lab's door opened automatically 3938 | -3/Lab | Sensor layout match revealed 3953 | -3/Lab | Gained access to the hidden lab's interior 3955 | -3/Lab | Found Alien Artifact 3968 | -3/Lab | Found Prototype Protection 3980 | -3/Lab | Found Prototype Hackware 3992 | -3/Lab | Found Transdimensional Reconstructor 3999 | -3/Lab | Found Alien Artifact 4036 | -3/Lab | Found Alien Artifact 4166 | -3/Lab | Identified Quantum Router 4169 | -3/Lab | Identified Core Reset Matrix 4169 | -3/Lab | Identified Core Expander 4169 | -3/Lab | Identified Integrated Mediator 4169 | -3/Lab | Used Core Reset Matrix 4171 | -3/Lab | Installed Integrated Mediator, increased core attachment efficiency. 4173 | -3/Lab | Installed Core Expander, added new Power slot 4189 | -3/Lab | Entered Research 4189 | -2/Research | Warlord forces began assault on 0b10 4189 | -2/Research | Evolved 2 slots: Propulsion x1, Utility x1 4248 | -2/Research | Met up with Warlord 4288 | -2/Research | Spotted B-90 Cyclops 4299 | -2/Research | Research machine network offline 4326 | -2/Research | Borebot progress halted 4340 | -2/Research | Fabricated Lgt. Quantum Reactor? 4436 | -2/Research | Discovered new exit (range 16) 4449 | -2/Research | Identified exit to Access 4449 | -2/Research | Entered Access 4449 | -1/Access | Evolved 2 slots: Propulsion x1, Utility x1 4464 | -1/Access | Identified Hvy. Regenerative Plating 4514 | -1/Access | Identified exit to Command 4769 | -1/Access | Lost 3 parts (1p2u) 4786 | -1/Access | Entered Command 4824 | -1/Command | Found Prototype Slashing Weapon 4824 | -1/Command | Identified Nanosword 4866 | -1/Command | Disengaged cave seal 4866 | -1/Command | Derelicts emerged from the dark tunnel 4866 | -1/Command | Welcomed Warlord to Command 4919 | -1/Command | Disengaged cave seal 4919 | -1/Command | Derelicts emerged from the dark tunnel 4947 | -1/Command | Found Prototype Device 4947 | -1/Command | Identified Exp. Thermal Defense Suite 5008 | -1/Command | Spotted B-99 Colossus 5037 | -1/Command | Spotted M Guard 5037 | -1/Command | Spotted M Guard 5037 | -1/Command | Spotted Combat Programmer 5037 | -1/Command | Spotted Combat Programmer 5112 | -1/Command | Spotted 4R-V7C(L) 5178 | -1/Command | Lost 5 parts (2n3u) 5216 | -1/Command | System corruption reached 10% 5233 | -1/Command | All MAIN.C guards destroyed 5418 | -1/Command | Warlord commented on Warlord statues 6051 | -1/Command | Met MAIN.C 6065 | -1/Command | Warlord shut down involuntarily 6194 | -1/Command | Identified exit to Surface 6282 | *** | Heading to fleet! Last Messages --------------- 06208_ K-01 Serf collects debris. 06210_ J>DVZ MUAI:Y80Y:ET22PUAEPE4UCFF>FX|R 06211_ Acquired 26 matter. 06225_ NO45RPKLPWO7BG7SVNC6I5K77>,FGQFS46T LSQ 06241_ F6BGV:NZ,FQ